[Event "Late-Titled-Tuesday-Blitz-March-05-2024"]
[Site "Chess.com"]
[Date "2024.03.05"]
[Round "9"]
[White "Goryachkina"]
[Black "corvachesky"]
[Result "1/2-1/2"]
[WhiteElo "2687"]
[BlackElo "2512"]
[TimeControl "180+1"]
[EndTime "15:39:44 PST"]
[Termination "Game drawn by repetition"]

1. e4 {[%clk 0:02:59.9]} 1... c6 {[%clk 0:02:49.9]} 2. d4 {[%clk 0:02:57.6]}
2... d5 {[%clk 0:02:49.1]} 3. exd5 {[%clk 0:02:57.6]} 3... cxd5 {[%clk
0:02:47.9]} 4. c4 {[%clk 0:02:57.9]} 4... Nf6 {[%clk 0:02:46.4]} 5. Nc3 {[%clk
0:02:58]} 5... Nc6 {[%clk 0:02:45.9]} 6. Nf3 {[%clk 0:02:56.1]} 6... Bg4 {[%clk
0:02:44.3]} 7. Bg5 {[%clk 0:02:55.7]} 7... e6 {[%clk 0:02:41.1]} 8. cxd5 {[%clk
0:02:43.4]} 8... exd5 {[%clk 0:02:29.7]} 9. Be2 {[%clk 0:02:42.6]} 9... Be7
{[%clk 0:02:26.7]} 10. O-O {[%clk 0:02:42.1]} 10... O-O {[%clk 0:02:26.4]} 11.
h3 {[%clk 0:02:39.5]} 11... Be6 {[%clk 0:02:24.7]} 12. Bd3 {[%clk 0:02:35.9]}
12... h6 {[%clk 0:02:24.2]} 13. Be3 {[%clk 0:02:30.7]} 13... Bd6 {[%clk
0:02:20.7]} 14. Re1 {[%clk 0:02:26.5]} 14... Re8 {[%clk 0:02:19.7]} 15. Rc1
{[%clk 0:02:21.2]} 15... Rc8 {[%clk 0:02:19]} 16. Bb1 {[%clk 0:01:55.9]} 16...
Ne7 {[%clk 0:02:00.2]} 17. Ne5 {[%clk 0:01:50.5]} 17... Bf5 {[%clk 0:01:54.9]}
18. Nb5 {[%clk 0:01:40.1]} 18... Rxc1 {[%clk 0:01:42.4]} 19. Qxc1 {[%clk
0:01:38.5]} 19... Bxb1 {[%clk 0:01:42]} 20. Qxb1 {[%clk 0:01:14.4]} 20... Bb8
{[%clk 0:01:39.8]} 21. Nc3 {[%clk 0:01:11.2]} 21... a6 {[%clk 0:01:24.8]} 22.
Bf4 {[%clk 0:01:07.9]} 22... Nc6 {[%clk 0:01:17.7]} 23. Nxc6 {[%clk 0:01:03]}
23... bxc6 {[%clk 0:01:17]} 24. Bxb8 {[%clk 0:00:39.9]} 24... Qxb8 {[%clk
0:01:15.2]} 25. Rxe8+ {[%clk 0:00:39.2]} 25... Qxe8 {[%clk 0:01:14.5]} 26. Qd3
{[%clk 0:00:31.9]} 26... Qe1+ {[%clk 0:01:11.7]} 27. Qf1 {[%clk 0:00:31.7]}
27... Qd2 {[%clk 0:01:01.2]} 28. Qxa6 {[%clk 0:00:30.5]} 28... Qxb2 {[%clk
0:00:58.2]} 29. Qxc6 {[%clk 0:00:23.2]} 29... Qc1+ {[%clk 0:00:58.3]} 30. Kh2
{[%clk 0:00:22.8]} 30... Qf4+ {[%clk 0:00:57.2]} 31. Kg1 {[%clk 0:00:22.8]}
31... Qc1+ {[%clk 0:00:56.4]} 32. Kh2 {[%clk 0:00:23.1]} 32... Qf4+ {[%clk
0:00:54.9]} 33. Kg1 {[%clk 0:00:23.5]} 33... Qc1+ {[%clk 0:00:54.7]} 1/2-1/2

[Event "Late-Titled-Tuesday-Blitz-March-05-2024"]
[Site "Chess.com"]
[Date "2024.03.05"]
[Round "9"]
[White "NCchamp"]
[Black "GilbertoHernandezAmura"]
[Result "0-1"]
[WhiteElo "2329"]
[BlackElo "2461"]
[TimeControl "180+1"]
[EndTime "15:39:46 PST"]
[Termination "GilbertoHernandezAmura won by checkmate"]

1. d4 {[%clk 0:02:59.1]} 1... Nf6 {[%clk 0:02:58.8]} 2. Bg5 {[%clk 0:02:59.5]}
2... c5 {[%clk 0:02:57.9]} 3. d5 {[%clk 0:02:57.5]} 3... Ne4 {[%clk 0:02:52.8]}
4. Bf4 {[%clk 0:02:55]} 4... d6 {[%clk 0:02:47.3]} 5. f3 {[%clk 0:02:54.1]} 5...
Nf6 {[%clk 0:02:40.6]} 6. c4 {[%clk 0:02:52.2]} 6... g6 {[%clk 0:02:36.8]} 7.
Nc3 {[%clk 0:02:50.4]} 7... Bg7 {[%clk 0:02:36.3]} 8. e4 {[%clk 0:02:45.2]} 8...
Qa5 {[%clk 0:02:18.2]} 9. Bd3 {[%clk 0:02:37.5]} 9... Nbd7 {[%clk 0:01:42.3]}
10. Ne2 {[%clk 0:02:32.7]} 10... h5 {[%clk 0:01:37.8]} 11. O-O {[%clk
0:02:31.8]} 11... h4 {[%clk 0:01:38.2]} 12. a3 {[%clk 0:02:13.6]} 12... Nh5
{[%clk 0:01:34.5]} 13. Be3 {[%clk 0:02:13.2]} 13... Ne5 {[%clk 0:01:35]} 14. Rb1
{[%clk 0:02:09.6]} 14... h3 {[%clk 0:01:28.7]} 15. g3 {[%clk 0:01:57.4]} 15...
Qd8 {[%clk 0:01:25.8]} 16. b4 {[%clk 0:01:54.3]} 16... b6 {[%clk 0:01:16.6]} 17.
a4 {[%clk 0:01:50]} 17... cxb4 {[%clk 0:01:09.6]} 18. Rxb4 {[%clk 0:01:49.5]}
18... O-O {[%clk 0:00:57.7]} 19. Bd4 {[%clk 0:01:48.7]} 19... e6 {[%clk
0:00:48.7]} 20. f4 {[%clk 0:01:21.7]} 20... Ng4 {[%clk 0:00:27.5]} 21. Bxg7
{[%clk 0:01:19.5]} 21... Kxg7 {[%clk 0:00:28.4]} 22. Qc1 {[%clk 0:01:16.2]}
22... Qc7 {[%clk 0:00:27.5]} 23. Nb5 {[%clk 0:01:12.6]} 23... Qc5+ {[%clk
0:00:27.4]} 24. Kh1 {[%clk 0:01:12.3]} 24... Qxb4 {[%clk 0:00:23]} 25. f5 {[%clk
0:00:59.5]} 25... exf5 {[%clk 0:00:22.8]} 26. exf5 {[%clk 0:00:59.5]} 26... Qc5
{[%clk 0:00:22.6]} 27. fxg6 {[%clk 0:00:57.7]} 27... Nf2+ {[%clk 0:00:20.7]} 28.
Rxf2 {[%clk 0:00:45.8]} 28... Qxf2 {[%clk 0:00:21.6]} 29. Qg5 {[%clk 0:00:46.1]}
29... Qg2# {[%clk 0:00:21.5]} 0-1

[Event "Late-Titled-Tuesday-Blitz-March-05-2024"]
[Site "Chess.com"]
[Date "2024.03.05"]
[Round "9"]
[White "Ducke13"]
[Black "GlavkonVVS"]
[Result "0-1"]
[WhiteElo "2390"]
[BlackElo "2550"]
[TimeControl "180+1"]
[EndTime "15:39:53 PST"]
[Termination "GlavkonVVS won on time"]

1. Nf3 {[%clk 0:02:41.4]} 1... Nf6 {[%clk 0:02:59.5]} 2. c4 {[%clk 0:02:39.3]}
2... c5 {[%clk 0:02:59.5]} 3. Nc3 {[%clk 0:02:39.2]} 3... Nc6 {[%clk 0:02:59.6]}
4. g3 {[%clk 0:02:39.8]} 4... d6 {[%clk 0:02:59.6]} 5. Bg2 {[%clk 0:02:40.2]}
5... e6 {[%clk 0:02:59.9]} 6. O-O {[%clk 0:02:40.2]} 6... Be7 {[%clk 0:03:00.1]}
7. d4 {[%clk 0:02:39.4]} 7... cxd4 {[%clk 0:03:00.4]} 8. Nxd4 {[%clk 0:02:39.4]}
8... Bd7 {[%clk 0:03:00.5]} 9. Nc2 {[%clk 0:02:38.9]} 9... a6 {[%clk 0:02:58.7]}
10. b3 {[%clk 0:02:39.3]} 10... O-O {[%clk 0:02:56.8]} 11. Bb2 {[%clk
0:02:39.1]} 11... Rc8 {[%clk 0:02:56.6]} 12. Qd2 {[%clk 0:02:37.1]} 12... Qc7
{[%clk 0:02:56.5]} 13. Rad1 {[%clk 0:02:36.5]} 13... Rfd8 {[%clk 0:02:55.7]} 14.
e4 {[%clk 0:02:34.1]} 14... Qb8 {[%clk 0:02:54.7]} 15. Qc1 {[%clk 0:02:32.9]}
15... b5 {[%clk 0:02:53.6]} 16. cxb5 {[%clk 0:02:30.1]} 16... axb5 {[%clk
0:02:53.7]} 17. Qa1 {[%clk 0:02:27]} 17... b4 {[%clk 0:02:49.6]} 18. Ne2 {[%clk
0:02:22.1]} 18... Ne5 {[%clk 0:02:46.1]} 19. Ne3 {[%clk 0:02:20.8]} 19... Bb5
{[%clk 0:02:44.6]} 20. Rd2 {[%clk 0:02:08]} 20... Nd3 {[%clk 0:02:33.4]} 21. Bd4
{[%clk 0:02:01.3]} 21... e5 {[%clk 0:02:21.6]} 22. Bb2 {[%clk 0:01:59.3]} 22...
Bf8 {[%clk 0:02:12.3]} 23. Rfd1 {[%clk 0:01:55.4]} 23... Nxb2 {[%clk 0:02:11.9]}
24. Qxb2 {[%clk 0:01:55.5]} 24... Qa8 {[%clk 0:02:00.7]} 25. Nf5 {[%clk
0:01:37.8]} 25... Bxe2 {[%clk 0:01:47.9]} 26. Rxe2 {[%clk 0:01:36.6]} 26... g6
{[%clk 0:01:48]} 27. Ne3 {[%clk 0:01:23.7]} 27... Rc3 {[%clk 0:01:40.8]} 28. Nc4
{[%clk 0:01:08.9]} 28... Rc8 {[%clk 0:01:28.3]} 29. a3 {[%clk 0:00:59.1]} 29...
Qb8 {[%clk 0:01:25.8]} 30. axb4 {[%clk 0:00:55.2]} 30... Qxb4 {[%clk 0:01:25.5]}
31. Qd2 {[%clk 0:00:28.5]} 31... Qxb3 {[%clk 0:01:17.2]} 32. Nxd6 {[%clk
0:00:28.3]} 32... Rd8 {[%clk 0:01:16.4]} 33. Qa2 {[%clk 0:00:09.5]} 33... Qxd1+
{[%clk 0:01:13.5]} 34. Bf1 {[%clk 0:00:08.8]} 34... Rxd6 {[%clk 0:01:09.7]} 0-1

[Event "Late-Titled-Tuesday-Blitz-March-05-2024"]
[Site "Chess.com"]
[Date "2024.03.05"]
[Round "9"]
[White "ritanovikova"]
[Black "Burgsvik"]
[Result "0-1"]
[WhiteElo "2210"]
[BlackElo "2367"]
[TimeControl "180+1"]
[EndTime "15:39:53 PST"]
[Termination "Burgsvik won by resignation"]

1. e4 {[%clk 0:02:59.6]} 1... c5 {[%clk 0:03:00.9]} 2. Nc3 {[%clk 0:02:59.8]}
2... Nc6 {[%clk 0:03:00.8]} 3. d3 {[%clk 0:03:00.7]} 3... d6 {[%clk 0:02:59.3]}
4. Be3 {[%clk 0:03:01.6]} 4... g6 {[%clk 0:02:59.5]} 5. Qd2 {[%clk 0:03:02.2]}
5... Bg7 {[%clk 0:02:59.6]} 6. g3 {[%clk 0:03:02.4]} 6... h5 {[%clk 0:02:59.6]}
7. h4 {[%clk 0:03:02.3]} 7... Bg4 {[%clk 0:02:58.4]} 8. f3 {[%clk 0:03:00]} 8...
Bd7 {[%clk 0:02:57.6]} 9. Bg2 {[%clk 0:02:59.5]} 9... Rb8 {[%clk 0:02:55.2]} 10.
Nge2 {[%clk 0:02:59.2]} 10... b5 {[%clk 0:02:55.4]} 11. Nd1 {[%clk 0:02:59]}
11... a5 {[%clk 0:02:52.6]} 12. O-O {[%clk 0:02:59.4]} 12... a4 {[%clk
0:02:52.8]} 13. a3 {[%clk 0:02:58.9]} 13... Qc8 {[%clk 0:02:45.3]} 14. Kh2
{[%clk 0:02:57.7]} 14... Nf6 {[%clk 0:02:42.8]} 15. Rb1 {[%clk 0:02:55]} 15...
Ne5 {[%clk 0:02:42]} 16. b3 {[%clk 0:02:48.3]} 16... b4 {[%clk 0:02:32.6]} 17.
axb4 {[%clk 0:02:46.2]} 17... Rxb4 {[%clk 0:02:31.7]} 18. Ndc3 {[%clk
0:02:37.1]} 18... axb3 {[%clk 0:02:29.7]} 19. Rxb3 {[%clk 0:02:35.7]} 19... Rxb3
{[%clk 0:02:29.9]} 20. cxb3 {[%clk 0:02:36.6]} 20... Qb8 {[%clk 0:02:26]} 21.
Ra1 {[%clk 0:02:29.5]} 21... O-O {[%clk 0:02:24.7]} 22. Qc2 {[%clk 0:02:29.1]}
22... Be6 {[%clk 0:02:19.3]} 23. Ra3 {[%clk 0:02:26.8]} 23... Qb4 {[%clk
0:02:13]} 24. Qa2 {[%clk 0:02:13.2]} 24... Nfg4+ {[%clk 0:02:10.9]} 25. fxg4
{[%clk 0:02:09.5]} 25... Nxg4+ {[%clk 0:02:10.8]} 26. Kh1 {[%clk 0:02:05.9]}
26... Bxc3 {[%clk 0:02:08.5]} 27. Bg1 {[%clk 0:01:58.6]} 27... Be5 {[%clk
0:02:01.1]} 28. Ra8 {[%clk 0:01:53.3]} 28... Qe1 {[%clk 0:01:55.7]} 29. Rxf8+
{[%clk 0:01:41.8]} 29... Kxf8 {[%clk 0:01:55.2]} 30. Bf3 {[%clk 0:01:18.8]}
30... Nf2+ {[%clk 0:01:39.5]} 31. Kg2 {[%clk 0:01:17.7]} 31... Nxd3 {[%clk
0:01:25.2]} 32. Be3 {[%clk 0:01:16.8]} 32... Kg7 {[%clk 0:01:11]} 33. Qa7 {[%clk
0:01:08.8]} 33... Bg4 {[%clk 0:00:53]} 34. Qxe7 {[%clk 0:00:33.7]} 34... Bxf3+
{[%clk 0:00:52.3]} 35. Kxf3 {[%clk 0:00:34.6]} 35... Qf1+ {[%clk 0:00:51.7]} 0-1

[Event "Late-Titled-Tuesday-Blitz-March-05-2024"]
[Site "Chess.com"]
[Date "2024.03.05"]
[Round "9"]
[White "Msb2"]
[Black "SchmakAttack"]
[Result "1-0"]
[WhiteElo "2996"]
[BlackElo "2819"]
[TimeControl "180+1"]
[EndTime "15:39:55 PST"]
[Termination "Msb2 won by resignation"]

1. d4 {[%clk 0:03:00.9]} 1... Nf6 {[%clk 0:03:00.2]} 2. c4 {[%clk 0:03:01.6]}
2... e6 {[%clk 0:03:00.1]} 3. Nc3 {[%clk 0:03:02]} 3... Bb4 {[%clk 0:03:00.2]}
4. e3 {[%clk 0:03:02.7]} 4... b6 {[%clk 0:02:58]} 5. Bd3 {[%clk 0:03:02.4]} 5...
c5 {[%clk 0:02:56.6]} 6. Nf3 {[%clk 0:03:01.1]} 6... O-O {[%clk 0:02:48.6]} 7.
Bd2 {[%clk 0:03:00]} 7... cxd4 {[%clk 0:02:43.9]} 8. exd4 {[%clk 0:03:00.9]}
8... d5 {[%clk 0:02:44.3]} 9. cxd5 {[%clk 0:02:58.9]} 9... exd5 {[%clk
0:02:33.3]} 10. O-O {[%clk 0:02:57.8]} 10... Bg4 {[%clk 0:02:28.6]} 11. h3
{[%clk 0:02:55]} 11... Bh5 {[%clk 0:02:16.9]} 12. Bg5 {[%clk 0:02:54.6]} 12...
Bxc3 {[%clk 0:02:14.7]} 13. bxc3 {[%clk 0:02:55.5]} 13... Nc6 {[%clk 0:02:05.1]}
14. Re1 {[%clk 0:02:53.8]} 14... Na5 {[%clk 0:01:57.2]} 15. g4 {[%clk
0:02:41.9]} 15... Bg6 {[%clk 0:01:56.8]} 16. Ne5 {[%clk 0:02:42.6]} 16... Bxd3
{[%clk 0:01:37.7]} 17. Qxd3 {[%clk 0:02:43.5]} 17... Re8 {[%clk 0:01:29.9]} 18.
Qf5 {[%clk 0:02:36.9]} 18... Rc8 {[%clk 0:01:25.6]} 19. Re3 {[%clk 0:02:21.6]}
19... Nc4 {[%clk 0:00:39.9]} 20. Nxc4 {[%clk 0:02:19.5]} 20... Rxc4 {[%clk
0:00:31.2]} 21. Bxf6 {[%clk 0:02:07.9]} 21... gxf6 {[%clk 0:00:30.2]} 22. Rae1
{[%clk 0:02:08]} 22... Rxe3 {[%clk 0:00:29.3]} 23. Rxe3 {[%clk 0:02:08.9]} 23...
Rc6 {[%clk 0:00:24.8]} 24. Kg2 {[%clk 0:01:59.9]} 24... Qc8 {[%clk 0:00:17]} 25.
Qxd5 {[%clk 0:01:51.1]} 25... Rxc3 {[%clk 0:00:16.4]} 26. Re7 {[%clk 0:01:51.8]}
26... Qc6 {[%clk 0:00:13.5]} 27. Qxc6 {[%clk 0:01:37.9]} 27... Rxc6 {[%clk
0:00:14.4]} 28. Kf3 {[%clk 0:01:38.7]} 28... a5 {[%clk 0:00:09.8]} 29. d5 {[%clk
0:01:34.4]} 29... Rc2 {[%clk 0:00:06.7]} 30. Re2 {[%clk 0:01:23.5]} 30... Rc3+
{[%clk 0:00:04.4]} 31. Re3 {[%clk 0:01:23.9]} 31... Rc2 {[%clk 0:00:04.5]} 32.
Ke4 {[%clk 0:01:17.7]} 32... Kf8 {[%clk 0:00:03.2]} 33. d6 {[%clk 0:01:17.3]}
33... Rd2 {[%clk 0:00:03]} 34. Rd3 {[%clk 0:01:13.5]} 34... Rxd3 {[%clk
0:00:03.3]} 35. Kxd3 {[%clk 0:01:14.4]} 35... Ke8 {[%clk 0:00:04]} 36. Kc4
{[%clk 0:01:12.4]} 36... Kd7 {[%clk 0:00:04.3]} 37. Kb5 {[%clk 0:01:13.2]} 37...
Kxd6 {[%clk 0:00:04.1]} 38. Kxb6 {[%clk 0:01:13.9]} 38... a4 {[%clk 0:00:03.8]}
39. Kb5 {[%clk 0:01:14.4]} 39... a3 {[%clk 0:00:01.8]} 40. Kb4 {[%clk
0:01:14.8]} 40... Kd5 {[%clk 0:00:01.6]} 41. Kxa3 {[%clk 0:01:15.4]} 1-0

[Event "Late-Titled-Tuesday-Blitz-March-05-2024"]
[Site "Chess.com"]
[Date "2024.03.05"]
[Round "9"]
[White "Abduzhaparov"]
[Black "bazar-wokzal"]
[Result "1-0"]
[WhiteElo "2466"]
[BlackElo "2552"]
[TimeControl "180+1"]
[EndTime "15:39:59 PST"]
[Termination "Abduzhaparov won by resignation"]

1. Nf3 {[%clk 0:02:55.6]} 1... c5 {[%clk 0:02:58.3]} 2. c4 {[%clk 0:02:56.5]}
2... g6 {[%clk 0:02:58.1]} 3. d4 {[%clk 0:02:56]} 3... Bg7 {[%clk 0:02:58]} 4.
e4 {[%clk 0:02:53.4]} 4... Qa5+ {[%clk 0:02:57]} 5. Nc3 {[%clk 0:02:49.6]} 5...
Nc6 {[%clk 0:02:56.2]} 6. dxc5 {[%clk 0:02:46.8]} 6... Bxc3+ {[%clk 0:02:53.7]}
7. bxc3 {[%clk 0:02:46.3]} 7... Nf6 {[%clk 0:02:47]} 8. Be2 {[%clk 0:02:27.5]}
8... Nxe4 {[%clk 0:02:43.5]} 9. O-O {[%clk 0:02:26.5]} 9... Nxc3 {[%clk
0:02:41.8]} 10. Qe1 {[%clk 0:02:21.6]} 10... Nxe2+ {[%clk 0:02:41.7]} 11. Qxe2
{[%clk 0:02:22.5]} 11... Qxc5 {[%clk 0:02:41.6]} 12. Be3 {[%clk 0:02:04]} 12...
Qh5 {[%clk 0:02:26.8]} 13. Qb2 {[%clk 0:02:00]} 13... f6 {[%clk 0:02:23.4]} 14.
Rad1 {[%clk 0:01:54.3]} 14... d6 {[%clk 0:02:17.2]} 15. Rfe1 {[%clk 0:01:54.4]}
15... Bg4 {[%clk 0:02:07.4]} 16. Qxb7 {[%clk 0:01:43.4]} 16... Rc8 {[%clk
0:01:51.5]} 17. Nd4 {[%clk 0:01:06.1]} 17... Bd7 {[%clk 0:01:25.3]} 18. Nxc6
{[%clk 0:01:00.5]} 18... Rxc6 {[%clk 0:01:24.9]} 19. Bf4 {[%clk 0:00:56.3]}
19... Qc5 {[%clk 0:01:18.6]} 20. Bxd6 {[%clk 0:00:47.9]} 20... Rxd6 {[%clk
0:01:16]} 21. Qb8+ {[%clk 0:00:48.3]} 21... Kf7 {[%clk 0:00:41.3]} 22. Qxh8
{[%clk 0:00:49.2]} 22... Rxd1 {[%clk 0:00:40.2]} 23. Qxh7+ {[%clk 0:00:45.5]}
23... Kf8 {[%clk 0:00:32.8]} 24. Rxd1 {[%clk 0:00:43]} 24... Qxc4 {[%clk
0:00:26.4]} 25. Qh6+ {[%clk 0:00:36.7]} 25... Kf7 {[%clk 0:00:25.6]} 26. Rxd7
{[%clk 0:00:33.7]} 26... Ke6 {[%clk 0:00:20.4]} 27. Qd2 {[%clk 0:00:32.1]} 27...
Qxa2 {[%clk 0:00:18]} 28. Qxa2+ {[%clk 0:00:30.9]} 1-0

[Event "Late-Titled-Tuesday-Blitz-March-05-2024"]
[Site "Chess.com"]
[Date "2024.03.05"]
[Round "9"]
[White "Sjakkerntobi"]
[Black "ansko1999"]
[Result "0-1"]
[WhiteElo "2486"]
[BlackElo "2668"]
[TimeControl "180+1"]
[EndTime "15:40:01 PST"]
[Termination "ansko1999 won by resignation"]

1. e4 {[%clk 0:03:00.9]} 1... c5 {[%clk 0:02:56.9]} 2. Nf3 {[%clk 0:03:00.9]}
2... e6 {[%clk 0:02:56.9]} 3. d4 {[%clk 0:02:57.9]} 3... cxd4 {[%clk 0:02:57.8]}
4. Nxd4 {[%clk 0:02:58.2]} 4... Nc6 {[%clk 0:02:58]} 5. Nc3 {[%clk 0:02:58.7]}
5... Qc7 {[%clk 0:02:58.1]} 6. Be3 {[%clk 0:02:57.8]} 6... Nf6 {[%clk
0:02:56.4]} 7. f4 {[%clk 0:02:50]} 7... Bb4 {[%clk 0:02:44]} 8. e5 {[%clk
0:02:48.2]} 8... Nd5 {[%clk 0:02:39.4]} 9. Nb5 {[%clk 0:02:37.4]} 9... Qa5
{[%clk 0:02:32.5]} 10. a3 {[%clk 0:02:24.3]} 10... Bxc3+ {[%clk 0:02:23.8]} 11.
bxc3 {[%clk 0:02:22.5]} 11... Nxe3 {[%clk 0:02:12.2]} 12. Qd6 {[%clk 0:02:07.2]}
12... Ne7 {[%clk 0:01:45.5]} 13. Qc5 {[%clk 0:00:33.3]} 13... Qb6 {[%clk
0:01:25.2]} 14. Qxb6 {[%clk 0:00:33.3]} 14... axb6 {[%clk 0:01:26.1]} 15. Kd2
{[%clk 0:00:34.1]} 15... Nxf1+ {[%clk 0:01:15.3]} 16. Rhxf1 {[%clk 0:00:24.1]}
16... O-O {[%clk 0:01:15.8]} 17. Nd6 {[%clk 0:00:21]} 17... Nf5 {[%clk
0:01:09.3]} 18. Nc4 {[%clk 0:00:20.9]} 18... b5 {[%clk 0:01:05.9]} 19. Nb2
{[%clk 0:00:14.7]} 19... d5 {[%clk 0:01:00.6]} 20. g4 {[%clk 0:00:14.4]} 20...
Ne7 {[%clk 0:01:00.9]} 21. Nd3 {[%clk 0:00:14.6]} 21... Bd7 {[%clk 0:00:59.3]}
22. h4 {[%clk 0:00:13.7]} 22... Rfc8 {[%clk 0:00:58.5]} 23. Rfb1 {[%clk
0:00:11.9]} 23... Rc4 {[%clk 0:00:57.8]} 24. Rb4 {[%clk 0:00:12]} 24... Rxb4
{[%clk 0:00:55.3]} 25. cxb4 {[%clk 0:00:12.3]} 25... d4 {[%clk 0:00:54.3]} 26.
Nc1 {[%clk 0:00:08.1]} 26... Bc6 {[%clk 0:00:53.8]} 27. Ne2 {[%clk 0:00:08.4]}
27... Nd5 {[%clk 0:00:42.2]} 28. Kd3 {[%clk 0:00:06.5]} 28... Nxb4+ {[%clk
0:00:39.7]} 0-1

[Event "Late-Titled-Tuesday-Blitz-March-05-2024"]
[Site "Chess.com"]
[Date "2024.03.05"]
[Round "9"]
[White "TheAlienParty"]
[Black "finec2"]
[Result "1-0"]
[WhiteElo "2399"]
[BlackElo "2226"]
[TimeControl "180+1"]
[EndTime "15:40:03 PST"]
[Termination "TheAlienParty won by resignation"]

1. c4 {[%clk 0:02:57]} 1... Nf6 {[%clk 0:02:59.2]} 2. Nc3 {[%clk 0:02:54.6]}
2... g6 {[%clk 0:02:58.9]} 3. e4 {[%clk 0:02:53.6]} 3... d6 {[%clk 0:02:58.8]}
4. d4 {[%clk 0:02:53.4]} 4... Bg7 {[%clk 0:02:59.4]} 5. h3 {[%clk 0:02:53.2]}
5... O-O {[%clk 0:02:59.3]} 6. Bd3 {[%clk 0:02:51.7]} 6... Na6 {[%clk 0:02:58]}
7. Be3 {[%clk 0:02:50.3]} 7... e6 {[%clk 0:02:57.1]} 8. g4 {[%clk 0:02:48.6]}
8... c5 {[%clk 0:02:57]} 9. d5 {[%clk 0:02:47.4]} 9... exd5 {[%clk 0:02:56.8]}
10. cxd5 {[%clk 0:02:45.3]} 10... Nc7 {[%clk 0:02:55]} 11. Nge2 {[%clk
0:02:43.2]} 11... a6 {[%clk 0:02:54.6]} 12. a4 {[%clk 0:02:42.8]} 12... b6
{[%clk 0:02:54.6]} 13. Ng3 {[%clk 0:02:41.9]} 13... Bb7 {[%clk 0:02:53.9]} 14.
g5 {[%clk 0:02:38.8]} 14... Nd7 {[%clk 0:02:52.9]} 15. h4 {[%clk 0:02:38.4]}
15... Re8 {[%clk 0:02:51.8]} 16. h5 {[%clk 0:02:28.7]} 16... Ne5 {[%clk
0:02:48.8]} 17. hxg6 {[%clk 0:02:25]} 17... fxg6 {[%clk 0:02:46]} 18. f4 {[%clk
0:02:23.5]} 18... Nxd3+ {[%clk 0:02:43.8]} 19. Qxd3 {[%clk 0:02:23.3]} 19... b5
{[%clk 0:02:32]} 20. axb5 {[%clk 0:02:17.9]} 20... axb5 {[%clk 0:02:31.7]} 21.
Rxa8 {[%clk 0:02:16.5]} 21... Bxa8 {[%clk 0:02:31.6]} 22. Nxb5 {[%clk
0:02:11.4]} 22... Nxb5 {[%clk 0:02:31.4]} 23. Qxb5 {[%clk 0:02:10.7]} 23... Bxd5
{[%clk 0:02:31.1]} 24. Qd3 {[%clk 0:02:00.4]} 24... Bc6 {[%clk 0:02:03]} 25. Kf2
{[%clk 0:01:54.6]} 25... Bxb2 {[%clk 0:01:57.4]} 26. Rd1 {[%clk 0:01:52.8]}
26... Bg7 {[%clk 0:01:11.8]} 27. Bxc5 {[%clk 0:01:46.6]} 27... Qa8 {[%clk
0:00:56.9]} 28. Qc4+ {[%clk 0:01:34.9]} 28... Kh8 {[%clk 0:00:50.4]} 29. Bd4
{[%clk 0:01:27.7]} 29... Bxe4 {[%clk 0:00:44.2]} 30. Bxg7+ {[%clk 0:01:24.8]}
30... Kxg7 {[%clk 0:00:43.6]} 31. Rxd6 {[%clk 0:01:23.7]} 31... Re7 {[%clk
0:00:32.4]} 32. Qd4+ {[%clk 0:01:17.8]} 32... Kf7 {[%clk 0:00:29.2]} 33. Qf6+
{[%clk 0:01:03.2]} 33... Kg8 {[%clk 0:00:28.5]} 34. Qxe7 {[%clk 0:01:02.3]}
34... Qa2+ {[%clk 0:00:27.8]} 35. Ke3 {[%clk 0:00:57.1]} 35... Qb3+ {[%clk
0:00:19.3]} 36. Kxe4 {[%clk 0:00:56.2]} 36... Qb4+ {[%clk 0:00:19.1]} 37. Kf3
{[%clk 0:00:54.2]} 1-0

[Event "Late-Titled-Tuesday-Blitz-March-05-2024"]
[Site "Chess.com"]
[Date "2024.03.05"]
[Round "9"]
[White "AndresDelgado77"]
[Black "DraningWaterHi"]
[Result "0-1"]
[WhiteElo "2288"]
[BlackElo "2208"]
[TimeControl "180+1"]
[EndTime "15:40:04 PST"]
[Termination "DraningWaterHi won on time"]

1. e4 {[%clk 0:03:00]} 1... c5 {[%clk 0:02:56.6]} 2. Nf3 {[%clk 0:02:58.5]} 2...
a6 {[%clk 0:02:54.4]} 3. c3 {[%clk 0:02:52.5]} 3... d5 {[%clk 0:02:51.5]} 4.
exd5 {[%clk 0:02:52.2]} 4... Qxd5 {[%clk 0:02:52.4]} 5. d4 {[%clk 0:02:52.6]}
5... Nc6 {[%clk 0:02:50.8]} 6. Be2 {[%clk 0:02:50.2]} 6... Nf6 {[%clk
0:02:50.9]} 7. c4 {[%clk 0:02:41.5]} 7... Qe4 {[%clk 0:02:44.2]} 8. Nc3 {[%clk
0:02:38.2]} 8... Qg4 {[%clk 0:02:43.8]} 9. d5 {[%clk 0:02:19.5]} 9... Nd8 {[%clk
0:02:36.1]} 10. O-O {[%clk 0:01:48.3]} 10... e6 {[%clk 0:02:36]} 11. h3 {[%clk
0:01:15.4]} 11... Qf5 {[%clk 0:02:31.6]} 12. g4 {[%clk 0:01:07.8]} 12... Nxg4
{[%clk 0:02:26.9]} 13. hxg4 {[%clk 0:01:00.4]} 13... Qxg4+ {[%clk 0:02:26.6]}
14. Kh1 {[%clk 0:00:58.3]} 14... Bd6 {[%clk 0:02:26.1]} 15. Nh2 {[%clk
0:00:27.3]} 15... Qh3 {[%clk 0:02:23.7]} 16. f4 {[%clk 0:00:27.7]} 16... O-O
{[%clk 0:02:14.8]} 17. Ne4 {[%clk 0:00:24.3]} 17... Bb8 {[%clk 0:02:13.9]} 18.
Bg4 {[%clk 0:00:20.1]} 18... Qh4 {[%clk 0:02:13.2]} 19. Ng5 {[%clk 0:00:16.7]}
19... h6 {[%clk 0:02:10.8]} 20. Nf3 {[%clk 0:00:15.5]} 20... Qf6 {[%clk
0:02:08.9]} 21. Bh3 {[%clk 0:00:13.1]} 21... b5 {[%clk 0:02:03.9]} 22. Ng4
{[%clk 0:00:12.2]} 22... Qe7 {[%clk 0:02:01.9]} 23. Rg1 {[%clk 0:00:11.4]} 23...
Kh8 {[%clk 0:02:00.4]} 24. f5 {[%clk 0:00:10]} 24... exf5 {[%clk 0:01:59.8]} 25.
Nxh6 {[%clk 0:00:09.3]} 25... g6 {[%clk 0:01:50]} 26. Qd2 {[%clk 0:00:10.2]}
26... Qe4 {[%clk 0:01:46.9]} 27. Bg2 {[%clk 0:00:06.5]} 27... bxc4 {[%clk
0:01:44.4]} 28. b3 {[%clk 0:00:05.7]} 28... Bb7 {[%clk 0:01:29.3]} 29. Bb2+
{[%clk 0:00:05.4]} 29... f6 {[%clk 0:01:29.5]} 30. Qg5 {[%clk 0:00:05.6]} 30...
Kg7 {[%clk 0:01:11.7]} 31. Rae1 {[%clk 0:00:05]} 31... Qf4 {[%clk 0:01:10.6]}
32. Re7+ {[%clk 0:00:04.2]} 32... Nf7 {[%clk 0:01:02.8]} 33. Qxf6+ {[%clk
0:00:03.7]} 33... Kxh6 {[%clk 0:01:03.2]} 34. Qg7+ {[%clk 0:00:02.8]} 34... Kh5
{[%clk 0:01:03.3]} 35. Qxf8 {[%clk 0:00:01.6]} 35... Nh6 {[%clk 0:00:58.3]} 0-1